Workbook

Sheet Keys for List Box
C3: Single Link cell is easy -- just like combo box
C6: For Multi- Link
C8: 1. Make Macro
C9: 2. Find Name of List Box
C10: 3. Use Selection
C11: 4. Use variable (object) ListCount to make look
C12: 5. Use variable (object) Selected() to test
C13: 6. Use variable (object) list() to find numbers
C14: 7. Make some kind of output variable
C16: To Finish
C18: 1. Create Range Name for Output
C19: 2. Clear out the Range name with Range().count loop
C20: 3. Create Counter Variable
C21: 4. Modify Cells to Range().cells
C22: 5. Copy to the Graph and Modify the Listbox Name in Title and Range

Sheet Sample Data
A1: Raw Data
E2: Oil | F2: 100 | G2: 126.020663 | H2: 83.98697783 | I2: 49.48834671 | J2: 42.21611197 | K2: 42.20878707 | L2: 54.77546607 | M2: 45.00095048 | N2: 59.4102052 | O2: 54.2055826 | P2: 74.0393036 | Q2: 87.29985819
E3: Gas | F3: 100 | G3: 144.5357145 | H3: 86.00622056 | I3: 124.5595175 | J3: 160.2376063 | K3: 195.0455883 | L3: 115.6837197 | M3: 88.66736689 | N3: 72.25581476 | O3: 42.58339584 | P3: 47.78655881 | Q3: 71.18278313
E4: Bananas | F4: 100 | G4: 98.41733294 | H4: 84.50101039 | I4: 51.01855378 | J4: 55.18167983 | K4: 69.59609854 | L4: 40.92039274 | M4: 30.46083119 | N4: 19.93647205 | O4: 22.20338936 | P4: 29.48403975 | Q4: 38.80369916
E5: Logs | F5: 100 | G5: 128.6158594 | H5: 175.7451165 | I5: 160.7367799 | J5: 173.4559805 | K5: 187.6501508 | L5: 205.8247765 | M5: 128.2939089 | N5: 179.1081972 | O5: 128.548188 | P5: 143.9276328 | Q5: 105.2829775
A7: Graph Data
D8: Last Historic Year | F8: 7
E10: Switch | F10: =F12<=$F$8 -> TRUE | G10: TRUE | H10: TRUE | I10: TRUE | J10: TRUE | K10: TRUE | L10: TRUE | M10: FALSE | N10: FALSE | O10: FALSE | P10: FALSE | Q10: FALSE
F11: =IF(F10,"History","Forecast") -> History | G11: =IF(G10,"History","Forecast") -> History | H11: History | I11: History | J11: History | K11: History | L11: History | M11: Forecast | N11: Forecast | O11: Forecast | P11: Forecast | Q11: Forecast
F12: 1 | G12: 2 | H12: 3 | I12: 4 | J12: 5 | K12: 6 | L12: 7 | M12: 8 | N12: 9 | O12: 10 | P12: 11 | Q12: 12 | S12: Max | T12: =ROUNDUP(max_na(F16:Q20),-2) -> 200
E13: History | F13: =IF(F10,Max) -> 200 | G13: 200 | H13: 200 | I13: 200 | J13: 200 | K13: 200 | L13: 200 | M13: FALSE | N13: FALSE | O13: FALSE | P13: FALSE | Q13: FALSE
E14: Forecast | F14: =IF(NOT(F10),Max) -> FALSE | G14: FALSE | H14: FALSE | I14: FALSE | J14: FALSE | K14: FALSE | L14: FALSE | M14: 200 | N14: 200 | O14: 200 | P14: 200 | Q14: 200
A15: Index from with Match from List Box
D16: =C23 -> 1 | E16: =INDEX(E2:E5,$D16) -> Oil | F16: =INDEX(F2:F5,$D16) -> 100 | G16: =INDEX(G2:G5,$D16) -> 126.020663 | H16: =INDEX(H2:H5,$D16) -> 83.98697783 | I16: =INDEX(I2:I5,$D16) -> 49.48834671 | J16: =INDEX(J2:J5,$D16) -> 42.21611197 | K16: =INDEX(K2:K5,$D16) -> 42.20878707 | L16: =INDEX(L2:L5,$D16) -> 54.77546607 | M16: =INDEX(M2:M5,$D16) -> 45.00095048 | N16: =INDEX(N2:N5,$D16) -> 59.4102052 | O16: =INDEX(O2:O5,$D16) -> 54.2055826 | P16: =INDEX(P2:P5,$D16) -> 74.0393036 | Q16: =INDEX(Q2:Q5,$D16) -> 87.29985819
D17: =C24 ->  | E17: =INDEX(E2:E5,$D17) ->  | F17: =INDEX(F2:F5,$D17) ->  | G17: =INDEX(G2:G5,$D17) ->  | H17: =INDEX(H2:H5,$D17) ->  | I17: =INDEX(I2:I5,$D17) ->  | J17: =INDEX(J2:J5,$D17) ->  | K17: =INDEX(K2:K5,$D17) ->  | L17: =INDEX(L2:L5,$D17) ->  | M17: =INDEX(M2:M5,$D17) ->  | N17: =INDEX(N2:N5,$D17) ->  | O17: =INDEX(O2:O5,$D17) ->  | P17: =INDEX(P2:P5,$D17) ->  | Q17: =INDEX(Q2:Q5,$D17) -> 
E18: =INDEX(E2:E5,$D18) ->  | F18: =INDEX(F2:F5,$D18) ->  | G18: =INDEX(G2:G5,$D18) ->  | H18: =INDEX(H2:H5,$D18) ->  | I18: =INDEX(I2:I5,$D18) ->  | J18: =INDEX(J2:J5,$D18) ->  | K18: =INDEX(K2:K5,$D18) ->  | L18: =INDEX(L2:L5,$D18) ->  | M18: =INDEX(M2:M5,$D18) ->  | N18: =INDEX(N2:N5,$D18) ->  | O18: =INDEX(O2:O5,$D18) ->  | P18: =INDEX(P2:P5,$D18) ->  | Q18: =INDEX(Q2:Q5,$D18) -> 
E19: =INDEX(E2:E5,$D19) ->  | F19: =INDEX(F2:F5,$D19) ->  | G19: =INDEX(G2:G5,$D19) ->  | H19: =INDEX(H2:H5,$D19) ->  | I19: =INDEX(I2:I5,$D19) ->  | J19: =INDEX(J2:J5,$D19) ->  | K19: =INDEX(K2:K5,$D19) ->  | L19: =INDEX(L2:L5,$D19) ->  | M19: =INDEX(M2:M5,$D19) ->  | N19: =INDEX(N2:N5,$D19) ->  | O19: =INDEX(O2:O5,$D19) ->  | P19: =INDEX(P2:P5,$D19) ->  | Q19: =INDEX(Q2:Q5,$D19) -> 
A20: Range and Match
B22: list out 2 | C22: Match
B23: Oil | C23: =MATCH(B23,$E$2:$E$5,0) -> 1
C24: =MATCH(B24,$E$2:$E$5,0) -> 
C25: =MATCH(B25,$E$2:$E$5,0) -> 
C26: =MATCH(B26,$E$2:$E$5,0) -> 
C27: =MATCH(B27,$E$2:$E$5,0) -> 
C28: =MATCH(B28,$E$2:$E$5,0) -> 

Sheet List Box Working
A1: Harry | B1: Bill | M1: Names are Added Here
M2: Frank
M3: Adam
M4: Bill
M5: Harry
M6: Sue
G16: 3
